fUSD/lending_fUSD_20260530
["ID","MTS","AMOUNT","RATE_DAILY","PERIOD"]
[423400256,1780084618000,-1418.3,0.00041095,120]
[423400255,1780084618000,-500.0,0.00041095,120]
[423400258,1780084618000,-2003.02,0.00041095,120]
[423400257,1780084618000,-500.0,0.00041095,120]
[423400259,1780084618000,-500.0,0.00041095,120]
[423400262,1780084618000,-5270.75,0.00041095,120]
[423400272,1780084618000,-3686.42,0.00041095,120]
[423400264,1780084618000,-3366.81,0.00041095,120]
[423400263,1780084618000,-3122.4,0.00041095,120]
[423400265,1780084618000,-500.0,0.00041095,120]
[423400267,1780084618000,-765.9,0.00041095,120]
[423400266,1780084618000,-500.0,0.00041095,120]
[423400268,1780084618000,-2172.9,0.00041095,120]
[423400269,1780084618000,-535.4,0.00041095,120]
[423400271,1780084618000,-500.0,0.00041095,120]
[423400270,1780084618000,-4771.41,0.00041095,120]
[423400261,1780084618000,-1134.48,0.00041095,120]
[423400281,1780084619000,-508.02,0.00041095,120]
[423400278,1780084619000,-1306.62,0.00041095,120]
[423400279,1780084619000,-500.0,0.00041095,120]
[423400276,1780084619000,-500.0,0.00041095,120]
[423400280,1780084619000,-489.53467875,0.00041095,120]
[423400274,1780084619000,-478.57773732,0.00041095,120]
[423400275,1780084619000,-500.0,0.00041095,120]
[423400273,1780084619000,-500.0,0.00041095,120]
[423400277,1780084619000,-500.0,0.00041095,120]
[423400282,1780084619000,-500.0,0.00041095,120]
[423400293,1780084619000,-500.0,0.00041095,120]
[423400283,1780084619000,-500.0,0.00041095,120]
[423400284,1780084619000,-500.0,0.00041095,120]
[423400291,1780084619000,-535.15,0.00041095,120]
[423400292,1780084619000,-500.0,0.00041095,120]
[423400289,1780084619000,-906.51,0.00041095,120]
[423400294,1780084619000,-500.0,0.00041095,120]
[423400288,1780084619000,-2576.61,0.00041095,120]
[423400287,1780084619000,-500.0,0.00041095,120]
[423400285,1780084619000,-2897.52,0.00041095,120]
[423400286,1780084619000,-500.0,0.00041095,120]
[423400290,1780084619000,-562.54,0.00041095,120]
[423400303,1780084620000,-574.79,0.00041095,120]
[423400295,1780084620000,-500.0,0.00041095,120]
[423400297,1780084620000,-4388.46,0.00041095,120]
[423400296,1780084620000,-3050.94,0.00041095,120]
[423400298,1780084620000,-2110.46,0.00041095,120]
[423400300,1780084620000,-500.0,0.00041095,120]
[423400301,1780084620000,-500.0,0.00041095,120]
[423400302,1780084620000,-2715.81,0.00041095,120]
[423400304,1780084620000,-1858.82,0.00041095,120]
[423400299,1780084620000,-500.0,0.00041095,120]
[423400307,1780084620000,-670.18,0.00041095,120]
[423400305,1780084620000,-500.0,0.00041095,120]
[423400314,1780084620000,-2128.17,0.00041095,120]
[423400312,1780084620000,-1317.34,0.00041095,120]
[423400315,1780084620000,-590.49,0.00041095,120]
[423400311,1780084620000,-879.24,0.00041095,120]
[423400310,1780084620000,-500.0,0.00041095,120]
[423400309,1780084620000,-970.88,0.00041095,120]
[423400308,1780084620000,-712.35,0.00041095,120]
[423400306,1780084620000,-4081.61,0.00041095,120]
[423400313,1780084620000,-467.12497841,0.00041095,120]
[423400321,1780084621000,-586.25,0.00041095,120]
[423400316,1780084621000,-1134.09,0.00041095,120]
[423400319,1780084621000,-500.0,0.00041095,120]
[423400318,1780084621000,-500.0,0.00041095,120]
[423400317,1780084621000,-5876.14,0.00041095,120]
[423400322,1780084621000,-1087.09,0.00041095,120]
[423400320,1780084621000,-592.15,0.00041095,120]
[423400323,1780084621000,-4008.58,0.00041095,120]
[423400325,1780084621000,-708.57,0.00041095,120]
[423400324,1780084621000,-310.61127739,0.00041095,120]
[423400327,1780084621000,-500.0,0.00041095,120]
[423400326,1780084621000,-1152.63,0.00041095,120]
[423400328,1780084621000,-500.0,0.00041095,120]
[423400329,1780084621000,-597.33,0.00041095,120]
[423400330,1780084621000,-500.0,0.00041095,120]
[423400333,1780084622000,-578.03,0.00041095,120]
[423400331,1780084622000,-500.0,0.00041095,120]
[423400332,1780084622000,-514.74,0.00041095,120]
[423400335,1780084622000,-4304.35,0.00041095,120]
[423400334,1780084622000,-428.82693831,0.00041095,120]
[423400336,1780084622000,-392.499,0.00041095,120]
[423400337,1780084622000,-500.0,0.00041095,120]
[423400339,1780084622000,-500.0,0.00041095,120]
[423400340,1780084622000,-6617.67,0.00041095,120]
[423400338,1780084622000,-500.0,0.00041095,120]
[423400343,1780084622000,-2962.07,0.00041095,120]
[423400350,1780084622000,-1048.73,0.00041095,120]
[423400349,1780084622000,-1145.03,0.00041095,120]
[423400348,1780084622000,-500.0,0.00041095,120]
[423400347,1780084622000,-500.0,0.00041095,60]
[423400341,1780084622000,-2699.7,0.00041095,120]
[423400345,1780084622000,-500.0,0.00041095,120]
[423400344,1780084622000,-500.0,0.00041095,120]
[423400342,1780084622000,-759.7,0.00041095,120]
[423400346,1780084622000,-500.0,0.00041095,30]
[423400360,1780084623000,-500.0,0.00041095,120]
[423400351,1780084623000,-3342.5,0.00041095,120]
[423400354,1780084623000,-1023.84,0.00041095,120]
[423400353,1780084623000,-4156.48,0.00041095,120]
[423400355,1780084623000,-2737.65,0.00041095,120]
[423400356,1780084623000,-500.0,0.00041095,120]
[423400357,1780084623000,-2406.03,0.00041095,120]
[423400358,1780084623000,-579.19,0.00041095,120]
[423400359,1780084623000,-573.84,0.00041095,120]
[423400352,1780084623000,-500.0,0.00041095,120]
[423400362,1780084623000,-500.0,0.00041095,120]
[423400361,1780084623000,-3441.13,0.00041095,120]
[423400363,1780084623000,-500.0,0.00041095,120]
[423400367,1780084623000,-500.0,0.00041095,120]
[423400365,1780084623000,-1446.5,0.00041095,120]
[423400366,1780084623000,-1441.29,0.00041095,120]
[423400368,1780084623000,-864.9,0.00041095,120]
[423400371,1780084623000,-500.0,0.00041095,120]
[423400369,1780084623000,-3228.8,0.00041095,120]
[423400370,1780084623000,-500.0,0.00041095,30]
[423400364,1780084623000,-4620.88,0.00041095,120]
[423400379,1780084624000,-500.0,0.00041095,120]
[423400381,1780084624000,-7049.94,0.00041095,120]
[423400380,1780084624000,-4946.88,0.00041095,120]
[423400372,1780084624000,-815.65,0.00041095,60]
[423400375,1780084624000,-802.95,0.00041095,120]
[423400374,1780084624000,-500.0,0.00041095,120]
[423400373,1780084624000,-1286.26,0.00041095,120]
[423400376,1780084624000,-500.0,0.00041095,120]
[423400377,1780084624000,-5607.42,0.00041095,120]
[423400378,1780084624000,-500.0,0.00041095,120]
[423400383,1780084624000,-1859.95,0.00041095,120]
[423400382,1780084624000,-500.0,0.00041095,120]
[423400392,1780084624000,-500.0,0.00041095,120]
[423400390,1780084624000,-500.0,0.00041095,120]
[423400389,1780084624000,-1126.98,0.00041095,120]
[423400391,1780084624000,-1726.08,0.00041095,120]
[423400384,1780084624000,-500.0,0.00041095,120]
[423400387,1780084624000,-649.28,0.00041095,120]
[423400386,1780084624000,-1126.46,0.00041095,120]
[423400388,1780084624000,-500.0,0.00041095,120]
[423400385,1780084624000,-1264.38,0.00041095,120]
[423400399,1780084625000,-500.0,0.00041095,120]
[423400393,1780084625000,-500.0,0.00041095,120]
[423400394,1780084625000,-3199.13,0.00041095,120]
[423400395,1780084625000,-617.74,0.00041095,120]
[423400397,1780084625000,-1982.73,0.00041095,120]
[423400396,1780084625000,-500.0,0.00041095,120]
[423400398,1780084625000,-500.0,0.00041095,120]
[423400403,1780084625000,-500.0,0.00041095,120]
[423400400,1780084625000,-579.85,0.00041095,120]
[423400402,1780084625000,-500.0,0.00041095,120]
[423400404,1780084625000,-1719.53,0.00041095,120]
[423400406,1780084625000,-1175.33,0.00041095,120]
[423400405,1780084625000,-662.03,0.00041095,120]
[423400407,1780084625000,-500.0,0.00041095,120]
[423400408,1780084625000,-500.0,0.00041095,120]
[423400401,1780084625000,-500.0,0.00041095,120]
[423400414,1780084626000,-500.0,0.00041095,120]
[423400409,1780084626000,-500.0,0.00041095,120]
[423400411,1780084626000,-500.0,0.00041095,120]
[423400410,1780084626000,-3326.07,0.00041095,120]
[423400413,1780084626000,-3359.54,0.00041095,120]
[423400415,1780084626000,-500.0,0.00041095,120]
[423400416,1780084626000,-1773.95,0.00041095,120]
[423400412,1780084626000,-605.83774488,0.00041095,120]
[423400418,1780084626000,-833.93,0.00041095,120]
[423400419,1780084626000,-621.72,0.00041095,120]
[423400420,1780084626000,-6866.64,0.00041095,120]
[423400425,1780084626000,-500.0,0.00041095,120]
[423400421,1780084626000,-640.57,0.00041095,120]
[423400423,1780084626000,-500.0,0.00041095,120]
[423400422,1780084626000,-790.67,0.00041095,120]
[423400424,1780084626000,-500.0,0.00041095,120]
[423400417,1780084626000,-2140.4,0.00041095,120]
[423400426,1780084627000,-976.17,0.00041095,120]
[423400428,1780084627000,-2609.54,0.00041095,120]
[423400427,1780084627000,-3792.98,0.00041095,120]
[423400431,1780084627000,-547.4,0.00041095,120]
[423400430,1780084627000,-1858.87,0.00041095,120]
[423400432,1780084627000,-500.0,0.00041095,120]
[423400429,1780084627000,-2437.03,0.00041095,120]
[423400434,1780084627000,-500.0,0.00041095,120]
[423400435,1780084627000,-500.0,0.00041095,120]
[423400436,1780084627000,-2028.88,0.00041095,120]
[423400437,1780084627000,-500.0,0.00041095,120]
[423400438,1780084627000,-500.0,0.00041095,120]
[423400439,1780084627000,-1347.19,0.00041095,120]
[423400440,1780084627000,-952.98,0.00041095,120]
[423400433,1780084627000,-1126.35,0.00041095,120]
[423400441,1780084628000,-500.0,0.00041095,120]
[423400443,1780084628000,-1152.16,0.00041095,120]
[423400442,1780084628000,-1631.86,0.00041095,120]
[423400444,1780084628000,-671.68,0.00041095,120]
[423400445,1780084628000,-884.91,0.00041095,120]
[423400446,1780084628000,-500.0,0.00041095,120]
[423400448,1780084628000,-500.0,0.00041095,120]
[423400449,1780084628000,-899.71,0.00041095,120]
[423400450,1780084628000,-3430.9,0.00041095,120]
[423400451,1780084628000,-500.0,0.00041095,120]
[423400452,1780084628000,-500.0,0.00041095,120]
[423400453,1780084628000,-500.0,0.00041095,120]
[423400447,1780084628000,-1920.56,0.00041095,120]
[423400454,1780084629000,-3635.75,0.00041095,120]
[423400457,1780084629000,-500.0,0.00041095,90]
[423400455,1780084629000,-4110.8,0.00041095,120]
[423400456,1780084629000,-1809.98,0.00041095,120]
[423400458,1780084629000,-500.0,0.00041095,120]
[423400463,1780084629000,-500.0,0.00041095,120]
[423400459,1780084629000,-500.0,0.00041095,120]
[423400461,1780084629000,-841.69,0.00041095,120]
[423400462,1780084629000,-500.0,0.00041095,120]
[423400464,1780084629000,-500.0,0.00041095,120]
[423400460,1780084629000,-500.0,0.00041095,120]
[423400465,1780084630000,-500.0,0.00041095,120]
[423400466,1780084630000,-543.68619862,0.00041095,120]
[423400468,1780084630000,-500.0,0.00041095,120]
[423400469,1780084630000,-500.0,0.00041095,120]
[423400467,1780084630000,-500.0,0.00041095,120]
[423400471,1780084630000,-500.0,0.00041095,120]
[423400473,1780084630000,-500.0,0.00041095,120]
[423400472,1780084630000,-2395.59,0.00041095,120]
[423400474,1780084630000,-905.61,0.00041095,120]
[423400470,1780084630000,-661.46,0.00041095,120]
[423400483,1780084631000,-452.43532369,0.00041095,120]
[423400476,1780084631000,-2954.71,0.00041095,120]
[423400477,1780084631000,-500.0,0.00041095,120]
[423400475,1780084631000,-500.0,0.00041095,120]
[423400478,1780084631000,-500.0,0.00041095,120]
[423400484,1780084631000,-1763.63,0.00041095,120]
[423400486,1780084631000,-500.0,0.00041095,120]
[423400481,1780084631000,-500.0,0.00041095,120]
[423400479,1780084631000,-500.0,0.00041095,120]
[423400482,1780084631000,-500.0,0.00041095,120]
[423400485,1780084631000,-518.56,0.00041095,120]
[423400487,1780084631000,-1112.42,0.00041095,120]
[423400488,1780084631000,-2439.46,0.00041095,120]
[423400480,1780084631000,-500.0,0.00041095,120]
[423400494,1780084632000,-500.0,0.00041095,120]
[423400489,1780084632000,-500.0,0.00041095,120]
[423400490,1780084632000,-500.0,0.00041095,120]
[423400491,1780084632000,-500.0,0.00041095,120]
[423400492,1780084632000,-2926.78,0.00041095,120]
[423400493,1780084632000,-2866.54,0.00041095,120]
[423400495,1780084632000,-825.84,0.00041095,120]
[423400499,1780084632000,-1002.79,0.00041095,120]
[423400497,1780084632000,-1291.14,0.00041095,120]
[423400498,1780084632000,-500.0,0.00041095,120]
[423400500,1780084632000,-2882.82,0.00041095,120]
[423400501,1780084632000,-962.18,0.00041095,120]
[423400502,1780084632000,-500.0,0.00041095,120]
[423400503,1780084632000,-1336.78,0.00041095,120]
[423400504,1780084632000,-500.0,0.00041095,120]
[423400496,1780084632000,-500.0,0.00041095,120]
[423400506,1780084633000,-1115.74,0.00041095,120]
[423400505,1780084633000,-3193.82,0.00041095,120]
[423400507,1780084633000,-500.0,0.00041095,120]
[423400508,1780084633000,-500.0,0.00041095,120]
[423400509,1780084633000,-500.0,0.00041095,120]
[423400510,1780084633000,-867.2,0.00041095,120]
[423400511,1780084633000,-396.63037958,0.00041095,120]
[423400513,1780084633000,-500.0,0.00041095,120]
[423400514,1780084633000,-2228.08,0.00041095,120]
[423400515,1780084633000,-1729.3,0.00041095,120]
[423400517,1780084633000,-500.0,0.00041095,120]
[423400516,1780084633000,-779.73,0.00041095,120]
[423400518,1780084633000,-500.0,0.00041095,120]
[423400519,1780084633000,-500.0,0.00041095,120]
[423400520,1780084633000,-500.0,0.00041095,120]
[423400512,1780084633000,-1632.71,0.00041095,120]
[423400521,1780084634000,-3062.0,0.00041095,120]
[423400522,1780084634000,-1621.13,0.00041095,120]
[423400523,1780084634000,-3013.78,0.00041095,120]
[423400524,1780084634000,-500.0,0.00041095,120]
[423400526,1780084634000,-500.0,0.00041095,120]
[423400527,1780084634000,-649.4555011,0.00041095,120]
[423400525,1780084634000,-500.0,0.00041095,120]
[423400528,1780084634000,-4443.42,0.00041095,120]
[423400531,1780084634000,-500.0,0.00041095,120]
[423400530,1780084634000,-2276.98,0.00041095,120]
[423400533,1780084634000,-500.0,0.00041095,120]
[423400532,1780084634000,-2908.55,0.00041095,31]
[423400534,1780084634000,-642.26,0.00041095,120]
[423400529,1780084634000,-500.0,0.00041095,120]
[423400536,1780084635000,-1221.17,0.00041095,120]
[423400535,1780084635000,-500.0,0.00041095,120]
[423400537,1780084635000,-857.11,0.00041095,120]
[423400538,1780084635000,-500.0,0.00041095,120]
[423400539,1780084635000,-500.0,0.00041095,120]
[423400540,1780084635000,-500.0,0.00041095,120]
[423400541,1780084635000,-720.47,0.00041095,120]
[423400542,1780084635000,-561.22,0.00041095,120]
[423400543,1780084635000,-10337.12,0.00041095,120]
[423400545,1780084635000,-500.0,0.00041095,120]
[423400547,1780084635000,-500.0,0.00041095,120]
[423400546,1780084635000,-6077.61,0.00041095,120]
[423400549,1780084635000,-2127.58,0.00041095,120]
[423400548,1780084635000,-500.0,0.00041095,120]
[423400550,1780084635000,-665.76,0.00041095,120]
[423400544,1780084635000,-500.0,0.00041095,120]
[423400558,1780084636000,-1950.18,0.00041095,120]
[423400551,1780084636000,-500.0,0.00041095,120]
[423400552,1780084636000,-500.0,0.00041095,120]
[423400553,1780084636000,-500.0,0.00041095,120]
[423400554,1780084636000,-594.52,0.00041095,120]
[423400555,1780084636000,-1324.41,0.00041095,120]
[423400557,1780084636000,-1116.87,0.00041095,120]
[423400559,1780084636000,-889.03,0.00041095,120]
[423400556,1780084636000,-1099.74,0.00041095,120]
[423400561,1780084636000,-1578.12,0.00041095,120]
[423400568,1780084636000,-1940.53,0.00041095,120]
[423400567,1780084636000,-500.0,0.00041095,120]
[423400565,1780084636000,-500.0,0.00041095,120]
[423400566,1780084636000,-500.0,0.00041095,120]
[423400560,1780084636000,-500.0,0.00041095,120]
[423400564,1780084636000,-500.0,0.00041095,120]
[423400569,1780084636000,-500.0,0.00041095,120]
[423400562,1780084636000,-500.0,0.00041095,120]
[423400563,1780084636000,-2853.4,0.00041095,120]
[423400577,1780084637000,-604.32,0.00041095,120]
[423400571,1780084637000,-2655.64,0.00041095,120]
[423400572,1780084637000,-500.0,0.00041095,120]
[423400574,1780084637000,-797.45,0.00041095,120]
[423400573,1780084637000,-500.0,0.00041095,120]
[423400575,1780084637000,-500.0,0.00041095,120]
[423400576,1780084637000,-3135.34,0.00041095,120]
[423400578,1780084637000,-500.0,0.00041095,120]
[423400570,1780084637000,-500.0,0.00041095,120]
[423400579,1780084637000,-707.96,0.00041095,120]
[423400582,1780084637000,-505.47,0.00041095,120]
[423400581,1780084637000,-1447.48,0.00041095,120]
[423400583,1780084637000,-776.02,0.00041095,120]
[423400584,1780084637000,-4055.01,0.00041095,120]
[423400586,1780084637000,-871.54,0.00041095,120]
[423400585,1780084637000,-500.0,0.00041095,120]
[423400587,1780084637000,-500.0,0.00041095,120]
[423400588,1780084637000,-2999.93,0.00041095,120]
[423400580,1780084637000,-827.09,0.00041095,120]
[423400594,1780084638000,-500.0,0.00041095,120]
[423400593,1780084638000,-1114.58,0.00041095,120]
[423400592,1780084638000,-500.0,0.00041095,120]
[423400596,1780084638000,-500.0,0.00041095,120]
[423400590,1780084638000,-700.93,0.00041095,120]
[423400589,1780084638000,-1118.25,0.00041095,120]
[423400591,1780084638000,-1466.68,0.00041095,120]
[423400597,1780084638000,-500.0,0.00041095,120]
[423400595,1780084638000,-500.0,0.00041095,120]
[423400599,1780084638000,-500.0,0.00041095,120]
[423400606,1780084638000,-483.31777854,0.00041095,120]
[423400605,1780084638000,-3195.91,0.00041095,120]
[423400604,1780084638000,-2974.48,0.00041095,120]
[423400603,1780084638000,-2054.28,0.00041095,120]
[423400598,1780084638000,-500.0,0.00041095,120]
[423400601,1780084638000,-3374.38,0.00041095,120]
[423400607,1780084638000,-500.0,0.00041095,120]
[423400600,1780084638000,-500.0,0.00041095,120]
[423400602,1780084638000,-500.0,0.00041095,120]
[423400608,1780084639000,-500.0,0.00041095,120]
[423400609,1780084639000,-500.0,0.00041095,120]
[423400610,1780084639000,-890.35,0.00041095,120]
[423400612,1780084639000,-500.0,0.00041095,120]
[423400611,1780084639000,-500.0,0.00041095,120]
[423400613,1780084639000,-1009.44,0.00041095,120]
[423400614,1780084639000,-500.0,0.00041095,120]
[423400616,1780084639000,-500.0,0.00041095,120]
[423400617,1780084639000,-811.08,0.00041095,120]
[423400615,1780084639000,-1493.4,0.00041095,120]
[423400620,1780084639000,-500.0,0.00041095,120]
[423400626,1780084639000,-1215.94,0.00041095,120]
[423400625,1780084639000,-500.0,0.00041095,120]
[423400624,1780084639000,-2534.35,0.00041095,120]
[423400627,1780084639000,-690.27,0.00041095,120]
[423400622,1780084639000,-705.86,0.00041095,120]
[423400621,1780084639000,-10046.73,0.00041095,120]
[423400619,1780084639000,-571.16,0.00041095,120]
[423400623,1780084639000,-702.65,0.00041095,120]
[423400618,1780084639000,-500.0,0.00041095,120]
[423400634,1780084640000,-1164.84,0.00041095,120]
[423400628,1780084640000,-500.0,0.00041095,120]
[423400629,1780084640000,-500.0,0.00041095,120]
[423400630,1780084640000,-984.16,0.00041095,120]
[423400631,1780084640000,-500.0,0.00041095,120]
[423400632,1780084640000,-928.69,0.00041095,120]
[423400633,1780084640000,-500.0,0.00041095,120]
[423400635,1780084640000,-500.0,0.00041095,120]
[423400636,1780084640000,-500.0,0.00041095,120]
[423400639,1780084640000,-500.0,0.00041095,120]
[423400645,1780084640000,-500.0,0.00041095,120]
[423400644,1780084640000,-500.0,0.00041095,120]
[423400643,1780084640000,-949.69,0.00041095,120]
[423400637,1780084640000,-6097.12,0.00041095,120]
[423400641,1780084640000,-500.0,0.00041095,120]
[423400640,1780084640000,-4026.5,0.00041095,120]
[423400638,1780084640000,-500.0,0.00041095,120]
[423400642,1780084640000,-2705.52,0.00041095,120]
[423400652,1780084641000,-7102.73,0.00041095,120]
[423400648,1780084641000,-1374.76,0.00041095,120]
[423400647,1780084641000,-1627.73,0.00041095,120]
[423400649,1780084641000,-531.68,0.00041095,120]
[423400651,1780084641000,-500.0,0.00041095,120]
[423400650,1780084641000,-500.0,0.00041095,120]
[423400653,1780084641000,-577.51,0.00041095,120]
[423400646,1780084641000,-500.0,0.00041095,120]
[423400655,1780084641000,-1031.26,0.00041095,120]
[423400656,1780084641000,-500.0,0.00041095,120]
[423400657,1780084641000,-1633.62,0.00041095,120]
[423400658,1780084641000,-500.0,0.00041095,120]
[423400659,1780084641000,-422.72096451,0.00041095,120]
[423400661,1780084641000,-1070.33,0.00041095,120]
[423400660,1780084641000,-1417.36,0.00041095,120]
[423400662,1780084641000,-500.0,0.00041095,120]
[423400663,1780084641000,-692.2,0.00041095,120]
[423400654,1780084641000,-1806.35,0.00041095,120]
[423400670,1780084642000,-593.29,0.00041095,120]
[423400668,1780084642000,-500.0,0.00041095,120]
[423400669,1780084642000,-500.0,0.00041095,120]
[423400671,1780084642000,-1263.4,0.00041095,120]
[423400667,1780084642000,-500.0,0.00041095,120]
[423400665,1780084642000,-3504.16,0.00041095,120]
[423400664,1780084642000,-500.0,0.00041095,120]
[423400666,1780084642000,-664.43,0.00041095,120]
[423400672,1780084642000,-1937.55,0.00041095,120]
[423400677,1780084642000,-500.0,0.00041095,120]
[423400674,1780084642000,-500.0,0.00041095,120]
[423400681,1780084642000,-500.0,0.00041095,120]
[423400682,1780084642000,-500.0,0.00041095,120]
[423400680,1780084642000,-500.0,0.00041095,120]
[423400679,1780084642000,-500.0,0.00041095,120]
[423400673,1780084642000,-500.0,0.00041095,120]
[423400683,1780084642000,-2579.97,0.00041095,120]
[423400676,1780084642000,-500.0,0.00041095,120]
[423400675,1780084642000,-500.0,0.00041095,120]
[423400678,1780084642000,-2939.52,0.00041095,120]
[423400691,1780084643000,-2388.18,0.00041095,120]
[423400684,1780084643000,-500.0,0.00041095,120]
[423400686,1780084643000,-500.0,0.00041095,120]
[423400685,1780084643000,-500.0,0.00041095,120]
[423400688,1780084643000,-500.0,0.00041095,120]
[423400687,1780084643000,-754.1,0.00041095,120]
[423400690,1780084643000,-500.0,0.00041095,120]
[423400689,1780084643000,-500.0,0.00041095,120]
[423400692,1780084643000,-505.93,0.00041095,120]
[423400693,1780084643000,-682.16,0.00041095,120]
[423400694,1780084643000,-532.32483087,0.00041095,120]
[423400702,1780084643000,-500.0,0.00041095,120]
[423400701,1780084643000,-850.39,0.00041095,120]
[423400700,1780084643000,-609.07,0.00041095,120]
[423400699,1780084643000,-500.0,0.00041095,120]
[423400703,1780084643000,-500.0,0.00041095,120]
[423400698,1780084643000,-500.0,0.00041095,120]
[423400696,1780084643000,-500.0,0.00041095,120]
[423400695,1780084643000,-1841.85,0.00041095,120]
[423400697,1780084643000,-1766.6,0.00041095,120]
[423400712,1780084644000,-2792.76,0.00041095,120]
[423400705,1780084644000,-1259.87,0.00041095,120]
[423400704,1780084644000,-895.35,0.00041095,120]
[423400706,1780084644000,-500.0,0.00041095,120]
[423400707,1780084644000,-500.0,0.00041095,120]
[423400709,1780084644000,-7448.84,0.00041095,120]
[423400708,1780084644000,-500.0,0.00041095,120]
[423400710,1780084644000,-169.59431987,0.00041095,120]
[423400711,1780084644000,-500.0,0.00041095,120]
[423400713,1780084644000,-500.0,0.00041095,120]
[423400724,1780084644000,-632.75,0.00041095,120]
[423400715,1780084644000,-500.0,0.00041095,120]
[423400717,1780084644000,-500.0,0.00041095,120]
[423400716,1780084644000,-500.0,0.00041095,120]
[423400718,1780084644000,-1411.46,0.00041095,120]
[423400719,1780084644000,-2108.16,0.00041095,120]
[423400720,1780084644000,-500.0,0.00041095,120]
[423400721,1780084644000,-500.0,0.00041095,120]
[423400722,1780084644000,-500.0,0.00041095,120]
[423400723,1780084644000,-500.0,0.00041095,120]
[423400714,1780084644000,-500.0,0.00041095,120]
[423400732,1780084645000,-6190.48,0.00041095,120]
[423400731,1780084645000,-500.0,0.00041095,120]
[423400730,1780084645000,-500.0,0.00041095,120]
[423400725,1780084645000,-500.0,0.00041095,120]
[423400728,1780084645000,-500.0,0.00041095,120]
[423400733,1780084645000,-500.0,0.00041095,120]
[423400726,1780084645000,-500.0,0.00041095,120]
[423400729,1780084645000,-3061.77,0.00041095,120]
[423400734,1780084645000,-500.0,0.00041095,120]
[423400727,1780084645000,-707.62,0.00041095,120]
[423400735,1780084645000,-500.0,0.00041095,120]
[423400745,1780084645000,-500.0,0.00041095,120]
[423400744,1780084645000,-500.0,0.00041095,120]
[423400742,1780084645000,-713.34,0.00041095,120]
[423400743,1780084645000,-500.0,0.00041095,120]
[423400736,1780084645000,-500.0,0.00041095,120]
[423400740,1780084645000,-500.0,0.00041095,120]
[423400738,1780084645000,-500.0,0.00041095,120]
[423400739,1780084645000,-500.0,0.00041095,120]
[423400737,1780084645000,-500.0,0.00041095,120]
[423400741,1780084645000,-500.0,0.00041095,120]
[423400753,1780084646000,-500.0,0.00041095,120]
[423400746,1780084646000,-500.0,0.00041095,120]
[423400747,1780084646000,-1407.3,0.00041095,120]
[423400748,1780084646000,-500.0,0.00041095,120]
[423400749,1780084646000,-500.0,0.00041095,120]
[423400751,1780084646000,-1446.13,0.00041095,120]
[423400750,1780084646000,-500.0,0.00041095,120]
[423400752,1780084646000,-932.74,0.00041095,120]
[423400754,1780084646000,-500.0,0.00041095,120]
[423400755,1780084646000,-500.0,0.00041095,120]